lending/lending_fUSD_20250131
["ID","MTS","AMOUNT","RATE_DAILY","PERIOD"]
[351120690,1738343447135,-916.1,0.00016986,2]
[351120692,1738343447144,-328.85386748,0.00016986,2]
[351120694,1738343447154,-500.0,0.00016986,2]
[351120696,1738343447163,-500.0,0.00016986,2]
[351120699,1738343447182,-561.26,0.00016986,2]
[351120701,1738343447191,-577.01,0.00016986,2]
[351120703,1738343447200,-500.0,0.00016986,2]
[351120705,1738343447209,-500.0,0.00016986,2]
[351120706,1738343447218,-500.0,0.00016986,2]
[351120708,1738343447227,-500.0,0.00016986,2]
[351120711,1738343447237,-500.0,0.00016986,2]
[351120712,1738343447247,-500.0,0.00016986,2]
[351120715,1738343447257,-500.0,0.00016986,2]
[351120716,1738343447266,-500.0,0.00016986,2]
[351120718,1738343447275,-505.72,0.00016986,2]
[351120720,1738343447284,-500.0,0.00016986,2]
[351120722,1738343447294,-500.0,0.00016986,2]
[351120724,1738343447303,-500.0,0.00016986,2]
[351120726,1738343447312,-766.18,0.00016986,2]
[351120728,1738343447321,-603.83,0.00016986,2]
[351120730,1738343447330,-500.0,0.00016986,2]
[351120732,1738343447339,-500.0,0.00016986,2]
[351120734,1738343447348,-880.31,0.00016986,2]
[351120736,1738343447358,-500.0,0.00016986,2]
[351120738,1738343447367,-500.0,0.00016986,2]
[351120740,1738343447376,-500.0,0.00016986,2]
[351120742,1738343447386,-611.11,0.00016986,2]
[351120744,1738343447395,-736.79,0.00016986,2]
[351120746,1738343447404,-500.0,0.00016986,2]
[351120748,1738343447413,-512.47,0.00016986,2]
[351120750,1738343447422,-500.0,0.00016986,2]
[351120752,1738343447431,-218.9724552,0.00016986,2]
[351120755,1738343447443,-281.0275448,0.00016986,2]
[351120757,1738343447453,-102.29610524,0.00016986,2]
[351120758,1738343447464,-452.37389476,0.00016986,2]
[351120759,1738343447473,-500.0,0.00016986,2]
[351120760,1738343447482,-500.0,0.00016986,2]
[351120761,1738343447491,-500.0,0.00016986,2]
[351120762,1738343447500,-500.0,0.00016986,2]
[351120763,1738343447509,-500.0,0.00016986,2]
[351120764,1738343447518,-241.21474266,0.00016986,2]
[351120765,1738343447529,-258.78525734,0.00016986,2]
[351120766,1738343447538,-500.0,0.00016986,2]
[351120767,1738343447547,-500.0,0.00016986,2]
[351120768,1738343447557,-500.0,0.00016986,2]
[351120769,1738343447566,-500.0,0.00016986,2]
[351120770,1738343447575,-500.0,0.00016986,2]
[351120771,1738343447584,-500.0,0.00016986,2]
[351120772,1738343447593,-500.0,0.00016986,2]
[351120773,1738343447607,-779.64,0.00016986,2]
[351120774,1738343447616,-500.0,0.00016986,2]
[351120775,1738343447625,-500.22,0.00016986,2]
[351120776,1738343447635,-500.0,0.00016986,2]
[351120777,1738343447644,-500.0,0.00016986,2]
[351120778,1738343447654,-500.0,0.00016986,2]
[351120779,1738343447663,-293.85474266,0.00016986,2]
[351120780,1738343447676,-206.14525734,0.00016986,2]
[351120781,1738343447685,-500.0,0.00016986,2]
[351120782,1738343447694,-432.46736496,0.00016986,2]
[351120783,1738343447710,-67.53263504,0.00016986,2]
[351120784,1738343447719,-584.04,0.00016986,2]
[351120785,1738343447728,-500.0,0.00016986,2]
[351120787,1738343447738,-500.0,0.00016986,2]
[351120789,1738343447747,-500.0,0.00016986,2]
[351120791,1738343447756,-686.01,0.00016986,2]
[351120793,1738343447765,-500.0,0.00016986,2]
[351120795,1738343447774,-500.0,0.00016986,2]
[351120797,1738343447783,-500.0,0.00016986,2]
[351120799,1738343447792,-500.0,0.00016986,2]
[351120801,1738343447801,-500.0,0.00016986,2]
[351120803,1738343447810,-500.0,0.00016986,2]
[351120805,1738343447819,-500.0,0.00016986,2]
[351120807,1738343447828,-807.02,0.00016986,2]
[351120809,1738343447837,-500.0,0.00016986,2]
[351120811,1738343447846,-633.45,0.00016986,2]
[351120813,1738343447856,-500.0,0.00016986,2]
[351120815,1738343447864,-500.0,0.00016986,2]
[351120817,1738343447873,-500.0,0.00016986,2]
[351120818,1738343447884,-500.0,0.00016986,2]
[351120819,1738343447897,-500.0,0.00016986,2]
[351120820,1738343447906,-500.0,0.00016986,2]
[351120821,1738343447916,-566.63,0.00016986,2]
[351120822,1738343447926,-500.0,0.00016986,2]
[351120823,1738343447935,-717.37,0.00016986,2]
[351120824,1738343447943,-500.0,0.00016986,2]
[351120825,1738343447952,-630.71,0.00016986,2]
[351120827,1738343447962,-500.0,0.00016986,2]
[351120828,1738343447972,-776.89,0.00016986,2]
[351120830,1738343447981,-670.29,0.00016986,2]
[351120832,1738343447990,-621.62,0.00016986,2]
[351120834,1738343447998,-391.33991161,0.00016986,2]
[351120836,1738343448008,-500.0,0.00016986,2]
[351120837,1738343448017,-500.0,0.00016986,2]
[351120838,1738343448026,-689.34,0.00016986,2]
[351120839,1738343448035,-548.55,0.00016986,2]
[351120840,1738343448045,-500.0,0.00016986,2]
[351120841,1738343448055,-500.0,0.00016986,2]
[351120842,1738343448065,-500.0,0.00016986,2]
[351120843,1738343448075,-500.0,0.00016986,2]
[351120844,1738343448084,-500.0,0.00016986,2]
[351120845,1738343448093,-500.0,0.00016986,2]
[351120846,1738343448102,-500.0,0.00016986,2]
[351120847,1738343448112,-580.11,0.00016986,2]
[351120848,1738343448121,-931.48,0.00016986,2]
[351120849,1738343448131,-789.86,0.00016986,2]
[351120850,1738343448141,-500.0,0.00016986,2]
[351120851,1738343448150,-500.0,0.00016986,2]
[351120852,1738343448160,-500.0,0.00016986,2]
[351120853,1738343448170,-500.0,0.00016986,2]
[351120854,1738343448179,-500.0,0.00016986,2]
[351120855,1738343448188,-500.0,0.00016986,2]
[351120856,1738343448198,-469.19669358,0.00016986,2]
[351120857,1738343448207,-583.37,0.00016986,2]
[351120858,1738343448216,-1367.84,0.00016986,2]
[351120859,1738343448227,-500.0,0.00016986,2]
[351120860,1738343448236,-500.0,0.00016986,2]
[351120861,1738343448245,-500.0,0.00016986,2]
[351120862,1738343448255,-500.0,0.00016986,2]
[351120863,1738343448265,-572.76,0.00016986,2]
[351120864,1738343448274,-500.0,0.00016986,2]
[351120865,1738343448284,-887.86,0.00016986,2]
[351120866,1738343448293,-500.0,0.00016986,2]
[351120867,1738343448302,-500.0,0.00016986,2]
[351120868,1738343448312,-500.0,0.00016986,2]
[351120869,1738343448321,-1241.92,0.00016986,2]
[351120870,1738343448331,-500.0,0.00016986,2]
[351120871,1738343448340,-500.0,0.00016986,2]
[351120872,1738343448349,-500.0,0.00016986,2]
[351120873,1738343448359,-951.52,0.00016986,2]
[351120874,1738343448368,-500.0,0.00016986,2]
[351120875,1738343448377,-943.69,0.00016986,2]
[351120876,1738343448387,-500.0,0.00016986,2]
[351120877,1738343448397,-500.0,0.00016986,2]
[351120878,1738343448406,-500.0,0.00016986,2]
[351120879,1738343448416,-500.0,0.00016986,2]
[351120880,1738343448426,-399.770608,0.00016986,2]
[351120881,1738343448436,-2416.6,0.00016986,2]
[351120882,1738343448445,-500.0,0.00016986,2]
[351120883,1738343448454,-666.18,0.00016986,2]
[351120884,1738343448464,-654.3,0.00016986,2]
[351120885,1738343448473,-500.0,0.00016986,2]
[351120886,1738343448483,-255.12819998,0.00016986,2]
[351120887,1738343448493,-1057.44,0.00016986,2]
[351120888,1738343448503,-500.0,0.00016986,2]
[351120889,1738343448512,-606.34,0.00016986,2]
[351120890,1738343448522,-500.0,0.00016986,2]
[351120891,1738343448531,-1013.63,0.00016986,2]
[351120892,1738343448540,-584.04,0.00016986,2]
[351120893,1738343448550,-500.0,0.00016986,2]
[351120894,1738343448559,-645.05,0.00016986,2]
[351120895,1738343448569,-500.0,0.00016986,2]
[351120896,1738343448578,-388.627543,0.00016986,2]
[351120897,1738343448588,-60.22246874,0.00016986,2]
[351120898,1738343449260,-324.686543,0.00015421,2]
[351120899,1738343449276,-942.23021568,0.00015421,2]
[351120900,1738343449287,-5476.98434132,0.00015421,2]
[351120901,1738343449297,-751.28,0.00016438,2]
[351120902,1738343449307,-751.28,0.00016575,2]
[351120903,1738343449316,-751.28,0.00016712,2]
[351120904,1738343449326,-751.28,0.00016849,2]
[351120905,1738343449335,-439.77753126,0.00016986,2]
[351120906,1738343449344,-662.6,0.00016986,2]
[351120907,1738343449354,-569.68,0.00016986,2]
[351120908,1738343449364,-500.0,0.00016986,2]
[351120909,1738343449374,-1441.81,0.00016986,2]
[351120910,1738343449386,-870.84,0.00016986,2]
[351120911,1738343449395,-1259.01,0.00016986,2]
[351120912,1738343449405,-500.0,0.00016986,2]
[351120913,1738343449415,-704.36,0.00016986,2]
[351120914,1738343449425,-500.0,0.00016986,2]
[351120915,1738343449434,-500.0,0.00016986,2]
[351120916,1738343449443,-500.0,0.00016986,2]
[351120917,1738343449452,-607.06,0.00016986,2]
[351120918,1738343449462,-612.3,0.00016986,2]
[351120919,1738343449473,-500.0,0.00016986,2]
[351120920,1738343449483,-500.0,0.00016986,2]
[351120921,1738343449493,-581.42,0.00016986,2]
[351120922,1738343449503,-734.51,0.00016986,2]
[351120923,1738343449514,-1579.72,0.00016986,2]
[351120924,1738343449523,-500.0,0.00016986,2]
[351120925,1738343449532,-500.0,0.00016986,2]
[351120926,1738343449542,-1159.3,0.00016986,2]
[351120927,1738343449551,-500.0,0.00016986,2]
[351120928,1738343449561,-500.0,0.00016986,2]
[351120929,1738343449569,-832.09,0.00016986,2]
[351120930,1738343449578,-500.0,0.00016986,2]
[351120931,1738343449588,-777.16,0.00016986,2]
[351120932,1738343449597,-500.0,0.00016986,2]
[351120933,1738343449606,-4929.55,0.00016986,2]
[351120934,1738343449615,-500.0,0.00016986,2]
[351120935,1738343449625,-521.69,0.00016986,2]
[351120936,1738343449634,-500.0,0.00016986,2]
[351120937,1738343449644,-500.0,0.00016986,2]
[351120938,1738343449653,-500.0,0.00016986,2]
[351120939,1738343449663,-1130.09,0.00016986,2]
[351120940,1738343449672,-756.22,0.00016986,2]
[351120941,1738343449681,-838.69,0.00016986,2]
[351120942,1738343449691,-500.0,0.00016986,2]
[351120943,1738343449701,-876.59,0.00016986,2]
[351120944,1738343449710,-1378.61,0.00016986,2]
[351120945,1738343449720,-4703.32,0.00016986,2]
[351120946,1738343449729,-500.0,0.00016986,2]
[351120947,1738343449739,-1517.22,0.00016986,2]
[351120948,1738343449748,-2618.44,0.00016986,2]
[351120949,1738343449757,-500.0,0.00016986,2]
[351120950,1738343449767,-634.94703525,0.00016986,2]
[351120951,1738343449776,-500.0,0.00016986,2]
[351120952,1738343449785,-500.0,0.00016986,2]
[351120953,1738343449794,-612.88,0.00016986,2]
[351120954,1738343449804,-500.0,0.00016986,2]
[351120955,1738343449813,-624.55,0.00016986,2]
[351120956,1738343449822,-3792.02,0.00016986,2]
[351120957,1738343449832,-579.36,0.00016986,2]
[351120958,1738343449841,-500.0,0.00016986,2]
[351120959,1738343449850,-500.0,0.00016986,2]
[351120960,1738343449859,-535.61,0.00016986,2]
[351120961,1738343449869,-568.72,0.00016986,2]
[351120962,1738343449879,-2076.55,0.00016986,2]
[351120963,1738343449890,-2590.44,0.00016986,2]
[351120964,1738343449900,-322.86826816,0.00016986,2]
[351120965,1738343449909,-3052.15,0.00016986,2]
[351120966,1738343449919,-622.52,0.00016986,2]
[351120967,1738343449929,-500.0,0.00016986,2]
[351120968,1738343449938,-1408.17,0.00016986,2]
[351120969,1738343449948,-1135.03,0.00016986,2]
[351120970,1738343449957,-500.0,0.00016986,2]
[351120971,1738343449967,-1884.43,0.00016986,2]
[351120972,1738343449980,-715.02,0.00016986,2]
[351120973,1738343449990,-563.78,0.00016986,2]
[351120974,1738343450000,-727.05,0.00016986,2]
[351120975,1738343450010,-3020.52,0.00016986,2]
[351120976,1738343450020,-663.46,0.00016986,2]
[351120977,1738343450029,-500.0,0.00016986,2]
[351120978,1738343450039,-1623.68,0.00016986,2]
[351120979,1738343450048,-4421.25,0.00016986,2]
[351120980,1738343450057,-565.29,0.00016986,2]
[351120981,1738343450067,-1062.85,0.00016986,2]
[351120982,1738343450076,-500.0,0.00016986,2]
[351120983,1738343450085,-1574.12,0.00016986,2]
[351120984,1738343450094,-1965.37,0.00016986,2]
[351120985,1738343450104,-2148.34,0.00016986,2]
[351120986,1738343450113,-500.0,0.00016986,2]
[351120987,1738343450123,-500.0,0.00016986,2]
[351120988,1738343450135,-1196.8,0.00016986,2]
[351120989,1738343450145,-920.78,0.00016986,2]
[351120990,1738343450154,-500.0,0.00016986,2]
[351120991,1738343450165,-774.29,0.00017014,2]
[351120992,1738343450175,-773.03,0.00017014,2]
[351120993,1738343450185,-150.0,0.00017031,2]
[351120994,1738343450202,-1037.0,0.00017064,2]
[351120995,1738343450212,-1247.31651326,0.00017072,2]
[351120996,1738343450221,-431.18147599,0.00017076,2]
[351120997,1738343450231,-175.6728823,0.00017122,2]
[351120998,1738343450241,-870.08,0.00017122,2]
[351120999,1738343450250,-1163.35,0.00017122,2]
[351121000,1738343450260,-1521.25,0.00017122,2]
[351121001,1738343450270,-798.51,0.00017122,2]
[351121002,1738343450280,-1794.84,0.00017122,2]
[351121003,1738343450290,-500.0,0.00017122,2]
[351121004,1738343450299,-500.0,0.00017122,2]
[351121005,1738343450309,-1303.4,0.00017122,2]
[351121006,1738343450319,-1604.75,0.00017122,2]
[351121007,1738343450329,-656.69,0.00017122,2]
[351121008,1738343450339,-500.0,0.00017122,2]
[351121009,1738343450349,-861.49,0.00017122,2]
[351121010,1738343450359,-500.0,0.00017122,2]
[351121011,1738343450368,-500.0,0.00017122,2]
[351121012,1738343450378,-707.19,0.00017122,2]
[351121013,1738343450392,-500.0,0.00017122,2]
[351121014,1738343450402,-552.6,0.00017122,2]
[351121015,1738343450412,-687.79,0.00017122,2]
[351121016,1738343450423,-522.1,0.00017122,2]
[351121017,1738343450433,-952.82,0.00017122,2]
[351121018,1738343450444,-829.77,0.00017122,2]
[351121019,1738343450453,-500.0,0.00017123,2]
[351121020,1738343450463,-500.0,0.00017123,2]
[351121021,1738343450473,-609.44954101,0.00017123,2]
[351121022,1738343450483,-500.0,0.00017123,2]
[351121023,1738343450492,-560.13,0.00017123,2]
[351121024,1738343450502,-500.0,0.00017123,2]
[351121025,1738343450514,-500.0,0.00017123,2]
[351121026,1738343450534,-500.0,0.00017123,2]
[351121027,1738343450544,-577.01,0.00017123,2]
[351121028,1738343450554,-500.0,0.00017123,2]
[351121029,1738343450564,-500.0,0.00017123,2]
[351121030,1738343450574,-500.0,0.00017123,2]
[351121031,1738343450583,-598.64843141,0.00017123,2]
[351121032,1738343450593,-500.0,0.00017123,2]
[351121033,1738343450602,-500.0,0.00017123,2]
[351121034,1738343450612,-500.0,0.00017123,2]
[351121035,1738343450622,-505.72,0.00017123,2]
[351121036,1738343450634,-500.0,0.00017123,2]
[351121037,1738343450644,-500.0,0.00017123,2]
[351121038,1738343450653,-500.0,0.00017123,2]
[351121039,1738343450663,-766.18,0.00017123,2]
[351121040,1738343450673,-603.83,0.00017123,2]
[351121041,1738343450682,-500.0,0.00017123,2]
[351121042,1738343450692,-500.0,0.00017123,2]
[351121043,1738343450701,-880.31,0.00017123,2]
[351121044,1738343450710,-500.0,0.00017123,2]
[351121045,1738343450719,-500.0,0.00017123,2]
[351121046,1738343450729,-500.0,0.00017123,2]
[351121047,1738343450738,-611.11,0.00017123,2]
[351121048,1738343450748,-736.79,0.00017123,2]
[351121049,1738343450758,-500.0,0.00017123,2]
[351121050,1738343450767,-512.47,0.00017123,2]
[351121051,1738343450776,-500.0,0.00017123,2]
[351121052,1738343450786,-500.0,0.00017123,2]
[351121053,1738343450796,-554.67,0.00017123,2]
[351121054,1738343450805,-500.0,0.00017123,2]
[351121055,1738343450814,-500.0,0.00017123,2]
[351121056,1738343450823,-500.0,0.00017123,2]
[351121057,1738343450833,-500.0,0.00017123,2]
[351121058,1738343450842,-500.0,0.00017123,2]
[351121059,1738343450851,-500.0,0.00017123,2]
[351121060,1738343450861,-500.0,0.00017123,2]
[351121061,1738343450871,-500.0,0.00017123,2]
[351121062,1738343450883,-500.0,0.00017123,2]
[351121063,1738343450896,-500.0,0.00017123,2]
[351121064,1738343450906,-500.0,0.00017123,2]
[351121065,1738343450915,-500.0,0.00017123,2]
[351121066,1738343450925,-500.0,0.00017123,2]
[351121067,1738343450935,-779.64,0.00017123,2]
[351121068,1738343450944,-500.0,0.00017123,2]
[351121069,1738343450954,-500.22,0.00017123,2]
[351121070,1738343450963,-500.0,0.00017123,2]
[351121071,1738343450974,-500.0,0.00017123,2]
[351121072,1738343450984,-500.0,0.00017123,2]
[351121073,1738343450993,-500.0,0.00017123,2]
[351121074,1738343451003,-500.0,0.00017123,2]
[351121075,1738343451012,-500.0,0.00017123,2]
[351121076,1738343451022,-584.04,0.00017123,2]
[351121077,1738343451031,-500.0,0.00017123,2]
[351121078,1738343451041,-500.0,0.00017123,2]
[351121079,1738343451051,-500.0,0.00017123,2]
[351121080,1738343451060,-500.0,0.00017123,2]
[351121081,1738343451069,-686.01,0.00017123,2]
[351121082,1738343451079,-500.0,0.00017123,2]
[351121083,1738343451088,-500.0,0.00017123,2]
[351121084,1738343451098,-500.0,0.00017123,2]
[351121085,1738343451108,-500.0,0.00017123,2]
[351121086,1738343451117,-500.0,0.00017123,2]
[351121087,1738343451127,-500.0,0.00017123,2]
[351121088,1738343451139,-807.02,0.00017123,2]
[351121089,1738343451148,-500.0,0.00017123,2]
[351121090,1738343451157,-633.45,0.00017123,2]
[351121091,1738343451167,-500.0,0.00017123,2]
[351121092,1738343451176,-500.0,0.00017123,2]
[351121093,1738343451186,-500.0,0.00017123,2]
[351121094,1738343451195,-500.0,0.00017123,2]
[351121095,1738343451205,-500.0,0.00017123,2]
[351121096,1738343451214,-500.0,0.00017123,2]
[351121097,1738343451224,-566.63,0.00017123,2]
[351121098,1738343451233,-500.0,0.00017123,2]
[351121099,1738343451243,-717.37,0.00017123,2]
[351121100,1738343451253,-500.0,0.00017123,2]
[351121101,1738343451263,-630.71,0.00017123,2]
[351121102,1738343451272,-500.0,0.00017123,2]
[351121103,1738343451281,-776.89,0.00017123,2]
[351121104,1738343451290,-670.29,0.00017123,2]
[351121105,1738343451299,-621.62,0.00017123,2]
[351121106,1738343451309,-500.0,0.00017123,2]
[351121107,1738343451318,-500.0,0.00017123,2]
[351121108,1738343451327,-689.34,0.00017123,2]
[351121109,1738343451337,-548.55,0.00017123,2]
[351121110,1738343451347,-500.0,0.00017123,2]
[351121111,1738343451357,-500.0,0.00017123,2]
[351121112,1738343451366,-500.0,0.00017123,2]
[351121113,1738343451376,-500.0,0.00017123,2]
[351121114,1738343451387,-500.0,0.00017123,2]
[351121115,1738343451397,-500.0,0.00017123,2]
[351121116,1738343451407,-500.0,0.00017123,2]
[351121117,1738343451416,-580.11,0.00017123,2]
[351121118,1738343451426,-789.86,0.00017123,2]
[351121119,1738343451436,-500.0,0.00017123,2]
[351121120,1738343451449,-500.0,0.00017123,2]
[351121121,1738343451459,-376.21250343,0.00017123,2]
[351121122,1738343451468,-500.0,0.00017123,2]
[351121123,1738343451477,-500.0,0.00017123,2]
[351121124,1738343451488,-500.0,0.00017123,2]
[351121125,1738343451498,-583.37,0.00017123,2]
[351121126,1738343451507,-1367.84,0.00017123,2]
[351121127,1738343451518,-500.0,0.00017123,2]
[351121128,1738343451527,-500.0,0.00017123,2]
[351121129,1738343451537,-500.0,0.00017123,2]
[351121130,1738343451547,-500.0,0.00017123,2]
[351121131,1738343451557,-572.76,0.00017123,2]
[351121132,1738343451566,-500.0,0.00017123,2]
[351121133,1738343451576,-500.0,0.00017123,2]
[351121134,1738343451588,-500.0,0.00017123,2]
[351121135,1738343451603,-500.0,0.00017123,2]
[351121136,1738343451613,-1241.92,0.00017123,2]
[351121137,1738343451623,-500.0,0.00017123,2]
[351121138,1738343451634,-500.0,0.00017123,2]
[351121139,1738343451644,-951.52,0.00017123,2]
[351121140,1738343451654,-500.0,0.00017123,2]
[351121141,1738343451664,-943.69,0.00017123,2]
[351121142,1738343451675,-500.0,0.00017123,2]
[351121143,1738343451686,-500.0,0.00017123,2]
[351121144,1738343451696,-500.0,0.00017123,2]
[351121145,1738343451707,-500.0,0.00017123,2]
[351121146,1738343451718,-399.770608,0.00017123,2]
[351121147,1738343451729,-2416.6,0.00017123,2]
[351121148,1738343451740,-500.0,0.00017123,2]
[351121149,1738343451751,-666.18,0.00017123,2]
[351121150,1738343451762,-654.3,0.00017123,2]
[351121151,1738343451772,-500.0,0.00017123,2]
[351121152,1738343451785,-1057.44,0.00017123,2]
[351121153,1738343451796,-500.0,0.00017123,2]
[351121154,1738343451806,-606.34,0.00017123,2]
[351121155,1738343451817,-1013.63,0.00017123,2]
[351121156,1738343451827,-584.04,0.00017123,2]
[351121157,1738343451838,-500.0,0.00017123,2]
[351121158,1738343451848,-500.0,0.00017123,2]
[351121159,1738343451858,-645.05,0.00017123,2]
[351121160,1738343451869,-500.0,0.00017123,2]
[351121161,1738343451883,-388.627543,0.00017123,2]
[351121162,1738343451899,-500.0,0.00017123,2]
[351121163,1738343451909,-662.6,0.00017123,2]
[351121164,1738343452163,-569.68,0.00017123,2]
[351121165,1738343452173,-500.0,0.00017123,2]
[351121166,1738343452182,-1441.81,0.00017123,2]
[351121167,1738343452191,-870.84,0.00017123,2]
[351121168,1738343452200,-1259.01,0.00017123,2]
[351121169,1738343452209,-500.0,0.00017123,2]
[351121170,1738343452218,-704.36,0.00017123,2]
[351121171,1738343452228,-500.0,0.00017123,2]
[351121172,1738343452238,-500.0,0.00017123,2]
[351121173,1738343452247,-607.06,0.00017123,2]
[351121174,1738343452257,-612.3,0.00017123,2]
[351121175,1738343452267,-546.09766541,0.00017123,2]
[351121176,1738343452276,-500.0,0.00017123,2]
[351121177,1738343452286,-581.42,0.00017123,2]
[351121178,1738343452296,-734.51,0.00017123,2]
[351121179,1738343452306,-1579.72,0.00017123,2]
[351121180,1738343452315,-500.0,0.00017123,2]
[351121181,1738343452325,-500.0,0.00017123,2]
[351121182,1738343452334,-1159.3,0.00017123,2]
[351121183,1738343452344,-500.0,0.00017123,2]
[351121184,1738343452353,-500.0,0.00017123,2]
[351121185,1738343452362,-832.09,0.00017123,2]
[351121186,1738343452372,-500.0,0.00017123,2]
[351121187,1738343452383,-777.16,0.00017123,2]
[351121188,1738343452392,-500.0,0.00017123,2]
[351121189,1738343452402,-4929.55,0.00017123,2]
[351121190,1738343452412,-500.0,0.00017123,2]
[351121191,1738343452421,-521.69,0.00017123,2]
[351121192,1738343452431,-500.0,0.00017123,2]
[351121193,1738343452440,-500.0,0.00017123,2]
[351121194,1738343452449,-500.0,0.00017123,2]
[351121195,1738343452459,-1130.09,0.00017123,2]
[351121196,1738343452469,-756.22,0.00017123,2]
[351121197,1738343452478,-838.69,0.00017123,2]
[351121198,1738343452487,-500.0,0.00017123,2]
[351121199,1738343452496,-876.59,0.00017123,2]
[351121200,1738343452506,-1378.61,0.00017123,2]
[351121201,1738343452516,-4703.32,0.00017123,2]
[351121202,1738343452525,-500.0,0.00017123,2]
[351121203,1738343452534,-1517.22,0.00017123,2]
[351121204,1738343452544,-2618.44,0.00017123,2]
[351121205,1738343452553,-500.0,0.00017123,2]
[351121206,1738343452562,-500.0,0.00017123,2]
[351121207,1738343452572,-298.69686898,0.00017123,2]
[351121208,1738343452581,-612.88,0.00017123,2]
[351121209,1738343452591,-500.0,0.00017123,2]
[351121210,1738343452600,-624.55,0.00017123,2]
[351121211,1738343452609,-3792.02,0.00017123,2]
[351121212,1738343452619,-500.0,0.00017123,2]
[351121213,1738343452629,-579.36,0.00017123,2]
[351121214,1738343452639,-500.0,0.00017123,2]
[351121215,1738343452648,-535.61,0.00017123,2]
[351121216,1738343452658,-568.72,0.00017123,2]
[351121217,1738343452668,-2076.55,0.00017123,2]
[351121218,1738343452677,-2590.44,0.00017123,2]
[351121219,1738343452687,-3052.15,0.00017123,2]
[351121220,1738343452696,-622.52,0.00017123,2]
[351121221,1738343452705,-500.0,0.00017123,2]
[351121222,1738343452715,-1408.17,0.00017123,2]
[351121223,1738343452725,-1135.03,0.00017123,2]
[351121224,1738343452734,-500.0,0.00017123,2]
[351121225,1738343452744,-1884.43,0.00017123,2]
[351121226,1738343452753,-715.02,0.00017123,2]
[351121227,1738343452762,-563.78,0.00017123,2]
[351121228,1738343452772,-727.05,0.00017123,2]
[351121229,1738343452781,-3020.52,0.00017123,2]
[351121230,1738343452790,-500.0,0.00017123,2]
[351121231,1738343452799,-663.46,0.00017123,2]
[351121232,1738343452809,-1623.68,0.00017123,2]
[351121233,1738343452819,-4421.25,0.00017123,2]
[351121234,1738343452828,-565.29,0.00017123,2]
[351121235,1738343452837,-1062.85,0.00017123,2]
[351121236,1738343452847,-500.0,0.00017123,2]
[351121237,1738343452856,-1574.12,0.00017123,2]
[351121238,1738343452866,-1965.37,0.00017123,2]
[351121239,1738343452876,-2148.34,0.00017123,2]
[351121240,1738343452889,-500.0,0.00017123,2]
[351121241,1738343452903,-500.0,0.00017123,2]
[351121242,1738343452913,-1196.8,0.00017123,2]
[351121243,1738343452923,-920.78,0.00017123,2]
[351121244,1738343452933,-500.0,0.00017123,2]